[Event "Netanya Open 2019"]
[Site "Netanya"]
[Date "2019.06.24"]
[Round "2.71"]
[White "Smoliar, Klim"]
[Black "Marques, Don"]
[Result "1-0"]
[WhiteElo "1871"]
[BlackElo "1179"]
[PlyCount "125"]
[EventDate "2019.06.23"]
[EventType "swiss"]
[EventRounds "9"]
[EventCountry "ISR"]
[TimeControl "40/5400+30:1800+30"]

1. e4 c5 2. d3 Nc6 3. g3 d6 4. Bg2 e5 5. f4 f5 6. Nc3 Nf6 7. fxe5 dxe5 8. Nge2 h6 9. exf5 Bxf5 10. O-O Qd7 11. b3 Bg4 12. Be3 Nd4 13. Bxd4 cxd4 14. Nb1 Be7 15. Nd2 O-O 16. Nc4 Qc7 17. a4 Rad8 18. Qd2 b6 19. Nc1 a5 20. Na2 Nd5 21. Bxd5+ Rxd5 22. Rxf8+ Bxf8 23. Qg2 Rd8 24. Qe4 Bd7 25. Qxe5 Qxe5 26. Nxe5 Bh3 27. Re1 Re8 28. Kf2 Bc5 29. Ng6 Re3 30. Nf4 Bg4 31. Rxe3 dxe3+ 32. Ke1 Bb4+ 33. Nxb4 axb4 34. Nd5 b5 35. a5 Bf3 36. Nxe3 Kf7 37. Nf5 Bc6 38. Nd4 Bb7 39. Nxb5 Ke6 40. a6 Bc6 41. Nd4+ Kd6 42. Nxc6 Kxc6 43. Ke2 Kb6 44. Ke3 Kxa6 45. Kd4 Kb6 46. Kc4 Kc6 47. Kxb4 Kb6 48. Kc4 Kc6 49. b4 Kb6 50. Kd5 Kc7 51. c4 Kd7 52. c5 Kc7 53. b5 g5 54. h3 h5 55. b6+ Kb7 56. Ke4 Kc6 57. Kf5 h4 58. gxh4 gxh4 59. Kg4 Kd7 60. b7 Kc7 61. c6 Kb8 62. Kxh4 Kc7 63. Kg5 1-0

[Event "Netanya Open 2019"]
[Site "Netanya"]
[Date "2019.06.25"]
[Round "3.4"]
[White "Grinberg, Eyal"]
[Black "Parligras, Mircea-Emilian"]
[Result "1-0"]
[ECO "B66"]
[WhiteElo "2474"]
[BlackElo "2638"]
[Annotator "RC"]
[PlyCount "133"]
[EventDate "2019.06.23"]
[EventType "swiss"]
[EventCountry "ISR"]
[SourceTitle "playchess.com"]
[Source "ChessBase"]
[SourceQuality "1"]
[TimeControl "40/5400+30:1800+30"]

1. e4 {[%emt 0:00:00]} c5 {[%emt 0:00:00]} 2. Nf3 {[%emt 0:00:00]} Nc6 {[%emt 0:00:00]} 3. d4 {[%emt 0:00:25]} cxd4 {[%emt 0:00:06]} 4. Nxd4 {[%emt 0:00:08]} Nf6 {[%emt 0:00:09]} 5. Nc3 {[%emt 0:00:08]} d6 {[%emt 0:00:09]} 6. Bg5 {[%emt 0:00:52]} e6 {[%emt 0:00:19]} 7. Qd2 {[%emt 0:00:45]} a6 {[%emt 0:00:30]} 8. O-O-O {[%emt 0:00:31]} Bd7 {[%emt 0:00:23]} 9. f3 {[%emt 0:01:30]} Nxd4 {[%emt 0:00:33]} 10. Qxd4 {[%emt 0:00:09]} h6 {[%emt 0:00:52]} 11. Be3 {[%emt 0:03:07]} Bc6 {[%emt 0:00:44]} 12. Kb1 {[%emt 0:14:07]} b5 {[%emt 0:01:32]} 13. Qd2 {[%emt 0:06:48]} Qc7 {[%emt 0:02:43]} 14. h4 {[%emt 0:06:31]} Rc8 {[%emt 0:05:21]} 15. Ne2 {[%emt 0:04:22]} Bb7 {[%emt 0:05:23]} 16. Nd4 {[%emt 0:02:42]} e5 {[%emt 0:17:40]} 17. Nf5 {[%emt 0:02:11]} d5 {[%emt 0:00:08]} 18. exd5 {[%emt 0:02:03]} Nxd5 {[%emt 0:00:17]} 19. Bd3 {[%emt 0:01:49]} g6 {[%emt 0:01:16]} 20. Ng3 {[%emt 0:01:26]} h5 {[%emt 0:19:17]} 21. Bg5 {[%emt 0:50:56]} Bg7 {[%emt 0:12:52]} 22. Be4 {[%emt 0:00:00]} O-O {[%emt 0:02:46]} 23. Bxd5 {[%emt 0:00:00]} Bxd5 {[%emt 0:00:03]} 24. Qxd5 {[%emt 0:00:00]} Qxc2+ {[%emt 0:00:43]} 25. Ka1 {[%emt 0:00:00]} e4 {[%emt 0:06:10]} 26. Qb3 {[%emt 0:00:00]} exf3 {[%emt 0:04:41]} 27. gxf3 {[%emt 0:00:00]} Qxb3 {[%emt 0:01:07]} 28. axb3 {[%emt 0:00:00]} Rc2 {[%emt 0:00:03]} 29. Bc1 {[%emt 0:00:00]} f5 {[%emt 0:03:03]} 30. Rhg1 {[%emt 0:00:00]} Rf2 {[%emt 0:05:29]} 31. Rd6 {[%emt 0:00:00]} Rf6 {[%emt 0:00:47]} 32. Rxf6 {[%emt 0:00:00]} Bxf6 {[%emt 0:00:04]} 33. Nxh5 {[%emt 0:00:00]} Bxh4 {[%emt 0:00:02]} 34. Nf4 {[%emt 0:00:00]} g5 {[%emt 0:02:26]} 35. Ng6 {[%emt 0:00:00]} Kh7 {[%emt 0:02:48]} 36. Nxh4 {[%emt 0:00:00]} gxh4 {[%emt 0:00:05]} 37. Rh1 {[%emt 0:00:00]} Rxf3 {[%emt 0:00:04]} 38. Rxh4+ {[%emt 0:00:00]} Kg7 {[%emt 0:00:14]} 39. Rf4 {[%emt 0:00:00]} Rxb3 {[%emt 0:00:41]} 40. Rxf5 {[%emt 0:00:00]} Rd3 {[%emt 0:05:55]} 41. Bf4 {[%emt 0:25:18]} Kg6 {[%emt 0:32:06]} 42. Rc5 {[%emt 0:01:08]} Kf7 {[%emt 0:00:53]} 43. Rc6 {[%emt 0:02:17]} Rd4 {[%emt 0:00:00]} 44. Be5 {[%emt 0:00:00]} Ra4+ {[%emt 0:00:00]} 45. Kb1 {[%emt 0:00:00]} Ke8 {[%emt 0:00:00]} 46. b3 {[%emt 0:00:00]} Re4 {[%emt 0:00:00]} 47. Bc3 {[%emt 0:00:00]} b4 {[%emt 0:00:00]} 48. Bb2 {[%emt 0:00:00]} a5 {[%emt 0:00:00]} 49. Ra6 {[%emt 0:00:00]} Re1+ {[%emt 0:00:00]} 50. Ka2 {[%emt 0:00:00]} Kd7 {[%emt 0:00:00]} 51. Rxa5 {[%emt 0:00:00]} Kc6 {[%emt 0:00:00]} 52. Re5 {[%emt 0:00:00]} Rh1 {[%emt 0:00:00]} 53. Bd4 {[%emt 0:00:00]} Rh4 {[%emt 0:00:00]} 54. Bf2 {[%emt 0:00:00]} Rh2 {[%emt 0:00:00]} 55. Rc5+ {[%emt 0:00:00]} Kb6 {[%emt 0:00:00]} 56. Rc2+ {[%emt 0:00:00]} Kb5 {[%emt 0:00:00]} 57. Kb2 {[%emt 0:00:00]} Rh5 {[%emt 0:00:00]} 58. Rc4 {[%emt 0:00:00]} Rh2 {[%emt 0:00:00]} 59. Rf4 {[%emt 0:00:00]} Ka5 {[%emt 0:00:00]} 60. Kc2 {[%emt 0:00:00]} Kb5 {[%emt 0:00:00]} 61. Kd3 {[%emt 0:00:00]} Rh3+ {[%emt 0:00:00]} 62. Be3 {[%emt 0:00:00]} Ka5 {[%emt 0:00:00]} 63. Rf5+ {[%emt 0:00:00]} Ka6 {[%emt 0:00:00]} 64. Re5 {[%emt 0:00:00]} Rh8 {[%emt 0:00:00]} 65. Kc4 {[%emt 0:00:00]} Rh4+ {[%emt 0:00:00]} 66. Bd4 {[%emt 0:00:00]} Rg4 {[%emt 0:00:00]} 67. Re7 {[%emt 0:00:00]} 1-0

[Event "Netanya Open 2019"]
[Site "Netanya"]
[Date "2019.06.25"]
[Round "3.5"]
[White "Efimenko, Zahar"]
[Black "Abergel, Thal"]
[Result "1-0"]
[ECO "A11"]
[WhiteElo "2632"]
[BlackElo "2450"]
[Annotator "RC"]
[PlyCount "67"]
[EventDate "2019.06.23"]
[EventType "swiss"]
[EventCountry "ISR"]
[SourceTitle "playchess.com"]
[Source "ChessBase"]
[SourceQuality "1"]
[TimeControl "40/5400+30:1800+30"]

1. Nf3 {[%emt 0:00:11]} d5 {[%emt 0:00:05]} 2. b3 {[%emt 0:00:28]} Nf6 {[%emt 0:02:29]} 3. Bb2 {[%emt 0:00:37]} e6 {[%emt 0:01:50]} 4. e3 {[%emt 0:00:46]} Nbd7 {[%emt 0:01:10]} 5. c4 {[%emt 0:03:59]} c6 {[%emt 0:01:54]} 6. Nc3 {[%emt 0:02:29]} a6 {[%emt 0:01:54]} 7. d4 {[%emt 0:07:36]} Bd6 {[%emt 0:08:04]} 8. Be2 {[%emt 0:02:40]} Qe7 {[%emt 0:11:01]} 9. O-O {[%emt 0:10:58]} O-O {[%emt 0:04:44]} 10. Qc2 {[%emt 0:03:52]} Ba3 {[%emt 0:09:04]} 11. Bxa3 {[%emt 0:02:52]} Qxa3 {[%emt 0:00:05]} 12. Rad1 {[%emt 0:02:48]} Qe7 {[%emt 0:04:34]} 13. e4 {[%emt 0:08:08]} dxe4 {[%emt 0:01:50]} 14. Nxe4 {[%emt 0:00:44]} c5 {[%emt 0:09:28]} 15. Rfe1 {[%emt 0:02:40]} Nxe4 {[%emt 0:05:11]} 16. Qxe4 {[%emt 0:01:29]} Nf6 {[%emt 0:00:13]} 17. Qe5 {[%emt 0:01:45]} b6 {[%emt 0:07:43]} 18. d5 {[%emt 0:05:21]} Qa7 {[%emt 0:01:11]} 19. Qf4 {[%emt 0:09:44]} exd5 {[%emt 0:01:48]} 20. cxd5 {[%emt 0:00:18]} Bb7 {[%emt 0:02:17]} 21. d6 {[%emt 0:02:11]} Rad8 {[%emt 0:01:07]} 22. Nh4 {[%emt 0:09:05]} Be4 {[%emt 0:04:53]} 23. Bf3 {[%emt 0:04:12]} Bxf3 {[%emt 0:02:17]} 24. Qxf3 {[%emt 0:00:17]} Qa8 {[%emt 0:02:18]} 25. Qf4 {[%emt 0:03:04]} Nd5 {[%emt 0:03:15]} 26. Qg3 {[%emt 0:00:09]} Kh8 {[%emt 0:06:16]} 27. Nf5 {[%emt 0:01:10]} Rg8 {[%emt 0:00:15]} 28. h4 {[%emt 0:03:02]} Nf6 {[%emt 0:00:49]} 29. Re7 {[%emt 0:01:11]} Qc8 {[%emt 0:00:54]} 30. d7 {[%emt 0:01:39]} Qc6 {[%emt 0:01:47]} 31. Rd6 {[%emt 0:03:25]} Qc7 {[%emt 0:01:10]} 32. Qd3 {[%emt 0:01:14]} b5 {[%emt 0:00:43]} 33. Nh6 {[%emt 0:03:08]} gxh6 {[%emt 0:00:45]} 34. Rxf6 {[%emt 0:00:03]} 1-0

[Event "Netanya Open 2019"]
[Site "Netanya"]
[Date "2019.06.25"]
[Round "3.7"]
[White "Zubov, Alexander"]
[Black "Birnboim, Nathan"]
[Result "1-0"]
[ECO "B31"]
[WhiteElo "2597"]
[BlackElo "2379"]
[Annotator "ChessBase"]
[PlyCount "87"]
[EventDate "2019.06.23"]
[EventType "swiss"]
[EventCountry "ISR"]
[SourceTitle "playchess.com"]
[Source "ChessBase"]
[SourceQuality "1"]
[TimeControl "40/5400+30:1800+30"]

1. e4 {[%emt 0:01:38]} c5 {[%emt 0:00:00]} 2. Nf3 {[%emt 0:00:06]} Nc6 {[%emt 0:00:00]} 3. Bb5 {[%emt 0:00:05]} g6 {[%emt 0:00:07]} 4. O-O {[%emt 0:00:08]} Bg7 {[%emt 0:00:07]} 5. c3 {[%emt 0:00:06]} Nf6 {[%emt 0:01:20]} 6. Re1 {[%emt 0:00:06]} O-O {[%emt 0:02:44]} 7. h3 {[%emt 0:00:11]} Ne8 {[%emt 0:11:33]} 8. d4 {[%emt 0:04:33]} cxd4 {[%emt 0:03:22]} 9. cxd4 {[%emt 0:00:02]} Nc7 {[%emt 0:00:14]} 10. Ba4 {[%emt 0:02:12]} b5 {[%emt 0:00:14]} 11. Bb3 {[%emt 0:02:57]} d5 {[%emt 0:02:36]} 12. e5 {[%emt 0:01:17]} a5 {[%emt 0:03:40]} 13. Nc3 {[%emt 0:01:06]} a4 {[%emt 0:08:40]} 14. Bc2 {[%emt 0:00:17]} Rb8 {[%emt 0:07:44]} 15. Be3 {[%emt 0:05:06]} Na5 {[%emt 0:00:50]} 16. b3 {[%emt 0:00:23]} a3 {[%emt 0:00:16]} 17. Rc1 {[%emt 0:03:28]} Bd7 {[%emt 0:01:50]} 18. Qd2 {[%emt 0:05:08]} b4 {[%emt 0:03:30]} 19. Ne2 {[%emt 0:00:54]} Re8 {[%emt 0:00:11]} 20. Nf4 {[%emt 0:04:08]} Nc6 {[%emt 0:03:13]} 21. Bd3 {[%emt 0:00:40]} Na7 {[%emt 0:03:59]} 22. h4 {[%emt 0:08:04]} Ne6 {[%emt 0:06:36]} 23. h5 {[%emt 0:02:28]} Nxf4 {[%emt 0:07:56]} 24. Bxf4 {[%emt 0:00:24]} Rb6 {[%emt 0:00:58]} 25. Bh6 {[%emt 0:12:44]} Bg4 {[%emt 0:09:08]} 26. Bxg7 {[%emt 0:02:14]} Kxg7 {[%emt 0:03:15]} 27. h6+ {[%emt 0:00:43]} Kg8 {[%emt 0:00:14]} 28. Ng5 {[%emt 0:00:50]} Qd7 {[%emt 0:03:32]} 29. Rc5 {[%emt 0:08:31]} Rc8 {[%emt 0:01:46]} 30. Rec1 {[%emt 0:01:36]} f6 {[%emt 0:00:27]} 31. e6 {[%emt 0:06:10]} Bxe6 {[%emt 0:00:32]} 32. Nxe6 {[%emt 0:00:09]} Qxe6 {[%emt 0:00:24]} 33. Rxd5 {[%emt 0:07:12]} Kf8 {[%emt 0:03:23]} 34. Bc4 {[%emt 0:06:48]} Qg4 {[%emt 0:00:09]} 35. Re1 {[%emt 0:00:23]} Nc6 {[%emt 0:03:46]} 36. Qe3 {[%emt 0:04:00]} Rc7 {[%emt 0:01:09]} 37. Rd6 {[%emt 0:02:17]} Qc8 {[%emt 0:00:33]} 38. Re6 {[%emt 0:00:47]} Rbb7 {[%emt 0:04:00]} 39. Qf4 {[%emt 0:04:25]} Qd8 {[%emt 0:01:06]} 40. d5 {[%emt 0:00:11]} Na5 {[%emt 0:02:04]} 41. d6 {[%emt 0:30:08]} Nxc4 {[%emt 0:30:51]} 42. dxc7 {[%emt 0:00:28]} Rxc7 {[%emt 0:02:08]} 43. bxc4 {[%emt 0:00:17]} Kf7 {[%emt 0:00:37]} 44. c5 {[%emt 0:00:19]} 1-0

[Event "Netanya Open 2019"]
[Site "Netanya"]
[Date "2019.06.25"]
[Round "3.8"]
[White "Emanuel, Yahav"]
[Black "Huzman, Alexander"]
[Result "1/2-1/2"]
[ECO "B92"]
[WhiteElo "2359"]
[BlackElo "2588"]
[Annotator "ChessBase"]
[PlyCount "57"]
[EventDate "2019.06.23"]
[EventType "swiss"]
[EventCountry "ISR"]
[SourceTitle "playchess.com"]
[Source "ChessBase"]
[SourceQuality "1"]
[TimeControl "40/5400+30:1800+30"]

1. e4 {[%emt 0:00:00]} c5 {[%emt 0:00:00]} 2. Nf3 {[%emt 0:00:00]} d6 {[%emt 0:00:06]} 3. d4 {[%emt 0:00:00]} cxd4 {[%emt 0:00:13]} 4. Nxd4 {[%emt 0:00:00]} Nf6 {[%emt 0:00:26]} 5. Nc3 {[%emt 0:00:00]} a6 {[%emt 0:00:05]} 6. Be2 {[%emt 0:00:14]} e5 {[%emt 0:00:15]} 7. Nb3 {[%emt 0:00:04]} Be7 {[%emt 0:00:07]} 8. O-O {[%emt 0:00:20]} O-O {[%emt 0:00:12]} 9. Kh1 {[%emt 0:00:19]} b6 {[%emt 0:00:52]} 10. Be3 {[%emt 0:01:51]} Bb7 {[%emt 0:02:27]} 11. f3 {[%emt 0:00:21]} b5 {[%emt 0:01:48]} 12. a4 {[%emt 0:00:17]} b4 {[%emt 0:01:19]} 13. Nd5 {[%emt 0:00:15]} Nxd5 {[%emt 0:00:06]} 14. exd5 {[%emt 0:00:05]} Nd7 {[%emt 0:00:18]} 15. c4 {[%emt 0:00:35]} bxc3 {[%emt 0:07:30]} 16. bxc3 {[%emt 0:00:01]} Bg5 {[%emt 0:00:12]} 17. Bf2 {[%emt 0:00:16]} f5 {[%emt 0:02:57]} 18. c4 {[%emt 0:08:31]} Rc8 {[%emt 0:01:55]} 19. Bd3 {[%emt 0:07:49]} g6 {[%emt 0:01:49]} 20. Rb1 {[%emt 0:04:58]} Qc7 {[%emt 0:02:05]} 21. c5 {[%emt 0:33:05]} dxc5 {[%emt 0:01:36]} 22. Nxc5 {[%emt 0:08:11]} Nxc5 {[%emt 0:00:39]} 23. Bxc5 {[%emt 0:00:29]} Qxc5 {[%emt 0:10:04]} 24. Rxb7 {[%emt 0:00:05]} Qxd5 {[%emt 0:09:45]} 25. Rd7 {[%emt 0:02:24]} Qe6 {[%emt 0:06:49]} 26. Rd6 {[%emt 0:02:10]} Qe7 {[%emt 0:05:23]} 27. Rd7 {[%emt 0:07:37]} Qe6 {[%emt 0:01:20]} 28. Rd6 {[%emt 0:00:08]} Qe7 {[%emt 0:00:04]} 29. Rd7 {[%emt 0:00:07]} 1/2-1/2

[Event "Netanya Open 2019"]
[Site "Netanya"]
[Date "2019.06.25"]
[Round "3.9"]
[White "Antipov, Mikhail Al."]
[Black "Parkhov, Yair"]
[Result "1-0"]
[ECO "B90"]
[WhiteElo "2582"]
[BlackElo "2354"]
[Annotator "ChessBase"]
[PlyCount "125"]
[EventDate "2019.06.23"]
[EventType "swiss"]
[EventCountry "ISR"]
[SourceTitle "playchess.com"]
[Source "ChessBase"]
[SourceQuality "1"]
[TimeControl "40/5400+30:1800+30"]

1. e4 {[%emt 0:00:00]} c5 {[%emt 0:00:25]} 2. Nf3 {[%emt 0:00:00]} d6 {[%emt 0:00:07]} 3. d4 {[%emt 0:00:00]} cxd4 {[%emt 0:00:05]} 4. Nxd4 {[%emt 0:00:00]} Nf6 {[%emt 0:00:06]} 5. Nc3 {[%emt 0:00:00]} a6 {[%emt 0:00:04]} 6. f3 {[%emt 0:00:03]} e5 {[%emt 0:00:57]} 7. Nb3 {[%emt 0:00:08]} Be6 {[%emt 0:00:12]} 8. Be3 {[%emt 0:00:06]} h5 {[%emt 0:00:09]} 9. Qd2 {[%emt 0:00:21]} Nbd7 {[%emt 0:00:20]} 10. O-O-O {[%emt 0:02:22]} b5 {[%emt 0:01:51]} 11. Kb1 {[%emt 0:00:26]} Rc8 {[%emt 0:01:00]} 12. g3 {[%emt 0:10:40]} Be7 {[%emt 0:07:27]} 13. h3 {[%emt 0:05:30]} Qc7 {[%emt 0:17:41]} 14. f4 {[%emt 0:17:08]} Nb6 {[%emt 0:10:57]} 15. f5 {[%emt 0:10:43]} Bc4 {[%emt 0:11:42]} 16. Bxb6 {[%emt 0:05:10]} Qxb6 {[%emt 0:00:28]} 17. a3 {[%emt 0:02:33]} O-O {[%emt 0:06:45]} 18. g4 {[%emt 0:15:20]} Bxb3 {[%emt 0:05:47]} 19. cxb3 {[%emt 0:00:24]} Rxc3 {[%emt 0:00:25]} 20. Qxc3 {[%emt 0:00:05]} Nxe4 {[%emt 0:00:08]} 21. Qc2 {[%emt 0:04:09]} Nf2 {[%emt 0:01:05]} 22. Bg2 {[%emt 0:00:24]} Nxh1 {[%emt 0:01:49]} 23. Bxh1 {[%emt 0:00:48]} Qc5 {[%emt 0:13:15]} 24. Qe2 {[%emt 0:02:57]} Rc8 {[%emt 0:00:30]} 25. gxh5 {[%emt 0:03:02]} Bf6 {[%emt 0:01:50]} 26. Be4 {[%emt 0:04:05]} Kf8 {[%emt 0:00:37]} 27. Qd3 {[%emt 0:04:19]} Ke7 {[%emt 0:03:54]} 28. Bb7 {[%emt 0:08:07]} Rb8 {[%emt 0:00:54]} 29. Bd5 {[%emt 0:02:28]} Rc8 {[%emt 0:00:08]} 30. Bb7 {[%emt 0:01:55]} Rb8 {[%emt 0:00:06]} 31. Rc1 {[%emt 0:01:01]} Qd4 {[%emt 0:07:46]} 32. Rc7+ {[%emt 0:00:30]} Kf8 {[%emt 0:00:09]} 33. Qxd4 {[%emt 0:01:08]} exd4 {[%emt 0:00:02]} 34. Bd5 {[%emt 0:00:07]} Kg8 {[%emt 0:00:09]} 35. h6 {[%emt 0:00:57]} Rf8 {[%emt 0:00:09]} 36. Bxf7+ {[%emt 0:00:16]} Kh7 {[%emt 0:00:58]} 37. hxg7 {[%emt 0:00:05]} Bxg7 {[%emt 0:00:07]} 38. Kc2 {[%emt 0:00:26]} Kh6 {[%emt 0:00:42]} 39. Bg6 {[%emt 0:00:41]} Bf6 {[%emt 0:01:29]} 40. Rh7+ {[%emt 0:00:36]} Kg5 {[%emt 0:00:02]} 41. Kd3 {[%emt 0:30:20]} Kf4 {[%emt 0:33:25]} 42. h4 {[%emt 0:00:09]} Rh8 {[%emt 0:00:28]} 43. Rxh8 {[%emt 0:00:00]} Bxh8 {[%emt 0:00:00]} 44. b4 {[%emt 0:00:00]} Bg7 {[%emt 0:00:00]} 45. h5 {[%emt 0:00:00]} Ke5 {[%emt 0:00:00]} 46. Be8 {[%emt 0:00:00]} Kxf5 {[%emt 0:00:00]} 47. Bd7+ {[%emt 0:00:00]} Kg5 {[%emt 0:00:00]} 48. Bc8 {[%emt 0:00:00]} Kxh5 {[%emt 0:00:00]} 49. Bxa6 {[%emt 0:00:00]} Kg5 {[%emt 0:00:00]} 50. Bxb5 {[%emt 0:00:00]} d5 {[%emt 0:00:00]} 51. Bc6 {[%emt 0:00:00]} Kf5 {[%emt 0:00:00]} 52. Bxd5 {[%emt 0:00:00]} Ke5 {[%emt 0:00:00]} 53. Bg2 {[%emt 0:00:00]} Bf8 {[%emt 0:00:00]} 54. Kc4 {[%emt 0:00:00]} Bh6 {[%emt 0:00:00]} 55. a4 {[%emt 0:00:00]} Kd6 {[%emt 0:00:00]} 56. Be4 {[%emt 0:00:00]} Bc1 {[%emt 0:00:00]} 57. b3 {[%emt 0:00:00]} Bd2 {[%emt 0:00:00]} 58. b5 {[%emt 0:00:00]} Be1 {[%emt 0:00:00]} 59. b4 {[%emt 0:00:00]} Kc7 {[%emt 0:00:48]} 60. a5 {[%emt 0:00:00]} Bf2 {[%emt 0:00:27]} 61. b6+ {[%emt 0:00:00]} Kd6 {[%emt 0:00:07]} 62. a6 {[%emt 0:00:00]} d3 {[%emt 0:00:06]} 63. a7 {[%emt 0:00:00]} 1-0

[Event "Netanya Open 2019"]
[Site "Netanya"]
[Date "2019.06.25"]
[Round "3.10"]
[White "Globus, Or"]
[Black "Mikhalevski, Victor"]
[Result "0-1"]
[ECO "D85"]
[WhiteElo "2352"]
[BlackElo "2579"]
[Annotator "ChessBase"]
[PlyCount "56"]
[EventDate "2019.06.23"]
[EventType "swiss"]
[EventCountry "ISR"]
[SourceTitle "playchess.com"]
[Source "ChessBase"]
[SourceQuality "1"]
[TimeControl "40/5400+30:1800+30"]

1. d4 {[%emt 0:00:00]} Nf6 {[%emt 0:00:00]} 2. c4 {[%emt 0:00:00]} g6 {[%emt 0:00:00]} 3. Nc3 {[%emt 0:00:11]} d5 {[%emt 0:00:06]} 4. cxd5 {[%emt 0:00:52]} Nxd5 {[%emt 0:00:06]} 5. e4 {[%emt 0:00:04]} Nxc3 {[%emt 0:00:16]} 6. bxc3 {[%emt 0:00:05]} Bg7 {[%emt 0:00:06]} 7. Nf3 {[%emt 0:00:04]} c5 {[%emt 0:00:07]} 8. Be3 {[%emt 0:00:17]} Qa5 {[%emt 0:02:03]} 9. Nd2 {[%emt 0:01:08]} Qc7 {[%emt 0:04:38]} 10. Be2 {[%emt 0:10:00]} O-O {[%emt 0:02:04]} 11. O-O {[%emt 0:03:13]} Rd8 {[%emt 0:07:22]} 12. Rc1 {[%emt 0:01:33]} e6 {[%emt 0:00:40]} 13. Qb3 {[%emt 0:06:37]} Nc6 {[%emt 0:07:46]} 14. dxc5 {[%emt 0:02:50]} e5 {[%emt 0:01:31]} 15. Nc4 {[%emt 0:12:01]} Be6 {[%emt 0:03:40]} 16. Qa3 {[%emt 0:02:46]} Bf8 {[%emt 0:06:21]} 17. Rb1 {[%emt 0:04:54]} Rac8 {[%emt 0:10:13]} 18. Rb5 {[%emt 0:06:57]} a6 {[%emt 0:02:15]} 19. Rb6 {[%emt 0:03:59]} Bxc4 {[%emt 0:00:13]} 20. Rxc6 {[%emt 0:01:24]} Qxc6 {[%emt 0:00:12]} 21. Bxc4 {[%emt 0:00:04]} Bxc5 {[%emt 0:08:17]} 22. Qb3 {[%emt 0:02:16]} Bxe3 {[%emt 0:08:07]} 23. Bxf7+ {[%emt 0:00:06]} Kg7 {[%emt 0:00:08]} 24. fxe3 {[%emt 0:00:05]} Qxc3 {[%emt 0:00:40]} 25. Qxb7 {[%emt 0:06:04]} Rc7 {[%emt 0:03:27]} 26. Qb3 {[%emt 0:04:34]} Rf8 {[%emt 0:01:26]} 27. h3 {[%emt 0:07:12]} a5 {[%emt 0:06:24]} 28. h4 {[%emt 0:12:33]} a4 {[%emt 0:25:52]} 0-1

[Event "Netanya Open 2019"]
[Site "Netanya"]
[Date "2019.06.25"]
[Round "3.11"]
[White "Musyuk, Lior"]
[Black "Rozentalis, Eduardas"]
[Result "1/2-1/2"]
[ECO "B02"]
[WhiteElo "2190"]
[BlackElo "2540"]
[Annotator "ChessBase"]
[PlyCount "40"]
[EventDate "2019.06.23"]
[EventType "swiss"]
[EventCountry "ISR"]
[SourceTitle "playchess.com"]
[Source "ChessBase"]
[SourceQuality "1"]
[TimeControl "40/5400+30:1800+30"]

1. e4 {[%emt 0:00:00]} Nf6 {[%emt 0:00:00]} 2. e5 {[%emt 0:00:00]} Nd5 {[%emt 0:00:00]} 3. Nc3 {[%emt 0:00:01]} Nb6 {[%emt 0:00:09]} 4. d4 {[%emt 0:02:37]} d5 {[%emt 0:00:14]} 5. Nf3 {[%emt 0:05:51]} Bg4 {[%emt 0:01:32]} 6. h3 {[%emt 0:03:03]} Bxf3 {[%emt 0:00:36]} 7. Qxf3 {[%emt 0:00:18]} e6 {[%emt 0:00:04]} 8. Qg3 {[%emt 0:02:09]} Nc6 {[%emt 0:03:19]} 9. Be3 {[%emt 0:05:48]} Ne7 {[%emt 0:06:39]} 10. Bd3 {[%emt 0:04:36]} Nc4 {[%emt 0:07:36]} 11. Rb1 {[%emt 0:09:31]} c6 {[%emt 0:01:46]} 12. a4 {[%emt 0:05:15]} Nxe3 {[%emt 0:11:34]} 13. fxe3 {[%emt 0:01:15]} Nf5 {[%emt 0:00:33]} 14. Bxf5 {[%emt 0:06:40]} exf5 {[%emt 0:00:30]} 15. O-O {[%emt 0:00:30]} g6 {[%emt 0:00:30]} 16. b4 {[%emt 0:00:30]} Be7 {[%emt 0:00:30]} 17. b5 {[%emt 0:00:30]} Bh4 {[%emt 0:00:30]} 18. Qf4 {[%emt 0:00:30]} Bg5 {[%emt 0:00:30]} 19. Qg3 {[%emt 0:00:30]} Bh4 {[%emt 0:00:30]} 20. Qf4 {[%emt 0:00:30]} Bg5 {[%emt 0:00:30]} 1/2-1/2

[Event "Netanya Open 2019"]
[Site "Netanya"]
[Date "2019.06.25"]
[Round "3.12"]
[White "Sivuk, Vitaly"]
[Black "Krayz, Alexander"]
[Result "1-0"]
[ECO "E15"]
[WhiteElo "2547"]
[BlackElo "2377"]
[Annotator "ChessBase"]
[PlyCount "109"]
[EventDate "2019.06.23"]
[EventType "swiss"]
[EventCountry "ISR"]
[SourceTitle "playchess.com"]
[Source "ChessBase"]
[SourceQuality "1"]
[TimeControl "40/5400+30:1800+30"]

1. d4 {[%emt 0:06:25]} Nf6 {[%emt 0:00:00]} 2. c4 {[%emt 0:00:08]} e6 {[%emt 0:00:00]} 3. Nf3 {[%emt 0:00:08]} b6 {[%emt 0:00:00]} 4. g3 {[%emt 0:00:11]} Ba6 {[%emt 0:00:07]} 5. b3 {[%emt 0:00:11]} Bb4+ {[%emt 0:00:09]} 6. Bd2 {[%emt 0:00:08]} Be7 {[%emt 0:00:08]} 7. Nc3 {[%emt 0:00:08]} Bb7 {[%emt 0:06:59]} 8. Bg2 {[%emt 0:01:50]} Ne4 {[%emt 0:00:34]} 9. O-O {[%emt 0:05:37]} Nxd2 {[%emt 0:06:20]} 10. Qxd2 {[%emt 0:00:46]} f5 {[%emt 0:00:56]} 11. d5 {[%emt 0:02:14]} O-O {[%emt 0:02:22]} 12. Rad1 {[%emt 0:00:58]} Qe8 {[%emt 0:03:56]} 13. Nb5 {[%emt 0:08:35]} Bd8 {[%emt 0:01:38]} 14. d6 {[%emt 0:04:20]} c5 {[%emt 0:05:30]} 15. Nc7 {[%emt 0:10:59]} Bxc7 {[%emt 0:00:27]} 16. dxc7 {[%emt 0:00:05]} Na6 {[%emt 0:04:18]} 17. Qxd7 {[%emt 0:10:45]} Rc8 {[%emt 0:03:15]} 18. Ne5 {[%emt 0:05:16]} Bxg2 {[%emt 0:03:53]} 19. Kxg2 {[%emt 0:00:10]} Rxc7 {[%emt 0:00:48]} 20. Qxe8 {[%emt 0:00:17]} Rxe8 {[%emt 0:00:10]} 21. Rd6 {[%emt 0:00:07]} Nb4 {[%emt 0:06:46]} 22. a3 {[%emt 0:15:42]} Nc2 {[%emt 0:01:31]} 23. Rfd1 {[%emt 0:03:48]} Kf8 {[%emt 0:10:56]} 24. R1d2 {[%emt 0:05:24]} Nd4 {[%emt 0:02:11]} 25. b4 {[%emt 0:00:06]} Ke7 {[%emt 0:29:50]} 26. bxc5 {[%emt 0:00:30]} bxc5 {[%emt 0:00:05]} 27. Ra6 {[%emt 0:00:06]} Rec8 {[%emt 0:00:51]} 28. a4 {[%emt 0:05:44]} Nc6 {[%emt 0:02:10]} 29. Nxc6+ {[%emt 0:00:30]} Rxc6 {[%emt 0:00:04]} 30. Rxa7+ {[%emt 0:00:09]} R8c7 {[%emt 0:00:47]} 31. Ra8 {[%emt 0:00:14]} Rb6 {[%emt 0:02:06]} 32. a5 {[%emt 0:01:26]} Rb4 {[%emt 0:02:54]} 33. Ra2 {[%emt 0:00:51]} Rbb7 {[%emt 0:00:05]} 34. Kf3 {[%emt 0:01:19]} g5 {[%emt 0:00:37]} 35. e4 {[%emt 0:00:50]} Ra7 {[%emt 0:03:24]} 36. Rb8 {[%emt 0:03:24]} Rcb7 {[%emt 0:01:08]} 37. Rxb7+ {[%emt 0:00:13]} Rxb7 {[%emt 0:00:03]} 38. a6 {[%emt 0:01:30]} Ra7 {[%emt 0:00:04]} 39. exf5 {[%emt 0:00:11]} exf5 {[%emt 0:00:05]} 40. g4 {[%emt 0:00:13]} Kf6 {[%emt 0:01:18]} 41. Ra5 {[%emt 0:31:38]} fxg4+ {[%emt 0:30:22]} 42. Kxg4 {[%emt 0:00:09]} Kg6 {[%emt 0:00:05]} 43. Kf3 {[%emt 0:01:19]} Kf6 {[%emt 0:01:48]} 44. Ke4 {[%emt 0:00:32]} Ke6 {[%emt 0:00:06]} 45. Ra3 {[%emt 0:01:25]} g4 {[%emt 0:00:00]} 46. Ra5 {[%emt 0:00:00]} Kd6 {[%emt 0:00:00]} 47. Kf5 {[%emt 0:00:00]} Kc6 {[%emt 0:00:00]} 48. Kxg4 {[%emt 0:00:00]} Kb6 {[%emt 0:00:00]} 49. Ra2 {[%emt 0:00:00]} Rg7+ {[%emt 0:00:00]} 50. Kf5 {[%emt 0:00:00]} Ka7 {[%emt 0:00:00]} 51. f4 {[%emt 0:00:00]} Rf7+ {[%emt 0:00:00]} 52. Ke5 {[%emt 0:00:00]} Re7+ {[%emt 0:00:00]} 53. Kd5 {[%emt 0:00:00]} Rf7 {[%emt 0:00:00]} 54. Rf2 {[%emt 0:00:00]} Kxa6 {[%emt 0:00:00]} 55. f5 {[%emt 0:00:00]} 1-0